bitfinex/quotes_ETHUSD_20241207
["timestamp","ask_amount","ask_price","bid_price","bid_amount"]
[1733599322309,1.0418493,4018.9,4018.4,1.74197]
[1733599322536,2.15659802,4018.8,4018.4,1.74197]
[1733599322718,0.86263921,4018.7,4018.4,1.74197]
[1733599322925,1.0418493,4018.9,4018.4,1.74197]
[1733599323126,2.15656457,4018.8,4018.4,1.74197]
[1733599323332,0.86262583,4018.7,4018.4,1.74197]
[1733599323539,1.0418493,4018.9,4018.4,1.74197]
[1733599323759,3.19830483,4018.8,4017.9,2.55719]
[1733599323918,3.19830483,4018.8,4017.9,3.62666924]
[1733599323919,1.0418493,4018.6,4017.9,3.62666924]
[1733599324119,2.15645553,4018.7,4017.9,3.62666924]
[1733599324120,3.19830483,4018.5,4017.9,3.62666924]
[1733599324370,0.86258221,4018.4,4017.9,3.62666924]
[1733599324655,1.0418493,4018.5,4017.9,3.62666924]
[1733599324831,2.15626753,4018.4,4017.9,3.62666924]
[1733599325028,0.86251532,4018.3,4017.9,3.62666924]
[1733599325265,1.0418493,4018.5,4017.9,3.62666924]
[1733599325555,0.86236157,4018.4,4017.9,3.62666924]
[1733599325773,1.0418493,4018.5,4017.9,3.62666924]
[1733599325982,2.15589854,4018.4,4017.9,3.62666924]
[1733599326179,1.0418493,4018.5,4017.9,3.62666924]
[1733599326478,3.19741325,4018.4,4017.9,3.62666924]
[1733599326680,0.86222558,4018.3,4017.9,0.815]
[1733599326833,0.86226101,4018.2,4017.6,1.06947924]
[1733599327032,1.0418493,4018.4,4018.0,0.02813956]
[1733599327233,3.19752573,4018.3,4017.6,1.06947924]
[1733599327457,2.15567643,4018.2,4018.1,0.02735255]
[1733599327973,2.15567643,4018.2,4017.1,0.018777]
[1733599327974,0.8171,4018.1,4017.3,1.74245]
[1733599328346,0.8171,4018.1,4017.2,1.88207924]
[1733599328550,0.86187592,4018.0,4017.2,1.88207924]
[1733599328871,0.8171,4018.1,4017.2,1.88207924]
[1733599329071,0.86188453,4018.0,4017.2,1.88207924]
[1733599329279,1.8589493,4018.1,4017.2,1.88207924]
[1733599329280,0.8171,4018.1,4017.2,1.88207924]
[1733599329497,3.19604464,4018.0,4017.2,1.88207924]
[1733599329637,0.86165192,4017.9,4017.2,1.06947924]
[1733599329975,1.0418493,4018.0,4017.2,1.06947924]
[1733599330178,0.8171,4017.7,4017.1,0.018777]
[1733599334399,1.74234,4017.6,4017.1,0.018777]
[1733599334591,0.7752,4017.5,4017.1,0.018777]
[1733599336079,2.51758,4017.5,4017.1,0.018777]
[1733599338303,0.7752,4017.5,4017.1,0.018777]
[1733599338709,0.7752,4017.5,4017.2,0.02764054]
[1733599338864,0.7752,4017.3,4017.2,0.02764054]
[1733599339060,0.7752,4017.3,4017.1,0.018777]
[1733599339261,1.7425,4017.2,4017.1,0.018777]
[1733599339494,2.5177,4017.2,4017.1,0.018777]
[1733599339898,0.7752,4016.9,4015.9,0.7799]
[1733599340097,0.7752,4016.9,4015.9,1.84937924]
[1733599340409,0.7752,4016.9,4016.0,0.0278841]
[1733599342127,1.74268,4016.8,4016.0,0.0278841]
[1733599342418,0.8,4016.7,4015.7,1.74314]
[1733599342581,0.8,4016.7,4016.1,0.02796205]
[1733599342787,0.8,4016.7,4015.7,1.74314]
[1733599342982,0.8,4016.7,4016.2,0.02796205]
[1733599343218,0.8,4016.7,4015.6,1.84197924]
[1733599343388,0.8,4016.7,4016.3,0.02796205]
[1733599343589,0.8,4016.7,4015.8,1.74307]
[1733599343783,0.8,4016.7,4016.4,0.02796205]
[1733599344025,0.8,4016.7,4015.9,1.74306]
[1733599344384,0.8,4016.7,4016.0,0.02796205]
[1733599345100,0.8,4016.7,4016.1,0.7725]
[1733599345300,1.74246,4017.4,4016.1,0.7725]
[1733599345631,0.8,4017.3,4016.6,0.7725]
[1733599345987,1.74224,4017.9,4017.0,1.74258]
[1733599345988,0.8,4017.9,4017.0,1.74258]
[1733599346411,0.8,4017.9,4017.1,0.02835174]
[1733599347998,0.8,4017.9,4016.6,0.7725]
[1733599348236,0.7614,4017.8,4017.2,0.02740668]
[1733599348421,0.7614,4017.8,4016.6,2.51526]
[1733599348422,0.7614,4017.6,4016.6,0.7725]
[1733599348634,2.50374,4017.6,4017.3,0.02724105]
[1733599348931,2.50374,4017.6,4016.2,1.06947924]
[1733599348932,2.50374,4017.6,4016.5,1.7428]
[1733599349104,0.7614,4017.6,4016.5,1.7428]
[1733599349300,0.7614,4017.6,4016.6,0.02724105]
[1733599349514,0.7614,4017.6,4016.5,1.7428]
[1733599349831,0.7614,4017.5,4016.3,2.49759]
[1733599350014,0.7614,4017.5,4016.6,0.02724105]
[1733599350015,2.50379,4017.5,4016.6,0.02724105]
[1733599350222,2.50379,4017.5,4016.4,1.74284]
[1733599350528,2.50379,4017.5,4016.7,0.02724105]
[1733599350730,0.7614,4017.5,4016.4,1.74284]
[1733599350952,0.7614,4017.5,4016.8,0.02724105]
[1733599351226,0.7614,4017.5,4016.5,1.77003105]
[1733599351413,0.7614,4017.5,4016.3,0.7547]
[1733599351615,0.7614,4017.5,4016.6,1.77000105]
[1733599351796,0.7614,4017.5,4016.6,1.74276]
[1733599352025,0.7614,4017.5,4016.3,0.7547]
[1733599352226,0.7614,4017.5,4016.7,0.02724105]
[1733599352424,0.7614,4017.5,4016.9,1.74262]
[1733599353041,0.7614,4017.5,4017.0,0.02724105]
[1733599354629,0.7614,4017.5,4016.4,1.74281]
[1733599354843,0.7614,4017.5,4016.5,0.02724105]
[1733599355817,0.7614,4017.5,4016.6,1.76998105]
[1733599357363,0.7614,4017.5,4016.6,0.02724105]
[1733599357561,0.8226,4017.2,4016.2,1.74293]
[1733599358056,0.8226,4017.2,4016.3,0.02728487]
[1733599358414,0.8226,4017.2,4016.2,1.74293]
[1733599358617,0.8226,4017.2,4016.3,0.02728975]
[1733599358965,0.8226,4017.2,4016.2,1.74293]
[1733599359161,0.8226,4017.2,4016.3,0.02638009]
[1733599359465,0.8226,4017.2,4016.2,1.74293]
[1733599359865,0.8226,4017.2,4016.3,0.02638009]
[1733599360260,0.8226,4017.2,4016.2,1.74293]
[1733599360683,0.8226,4017.2,4016.3,0.02638009]
[1733599361005,0.8226,4017.2,4016.2,1.74293]
[1733599361211,0.8226,4017.2,4016.3,0.02638009]
[1733599361511,0.8226,4017.2,4016.3,1.76926009]
[1733599361708,0.8226,4017.2,4016.4,1.74283]
[1733599362008,0.8226,4017.2,4016.6,1.74274]
[1733599362187,0.8226,4017.2,4016.7,0.02638009]
[1733599362861,1.03981998,4017.9,4016.7,4.08932509]
[1733599363103,2.51149,4018.4,4016.8,1.16302219]
[1733599363409,2.51149,4018.4,4017.2,1.7425]
[1733599363778,2.51149,4018.4,4017.3,0.02545257]
[1733599364119,0.85924304,4018.3,4017.4,0.7516]
[1733599364405,0.7695,4018.4,4017.5,0.02526746]
[1733599364578,0.7695,4018.4,4017.4,0.7516]
[1733599364965,0.7695,4018.4,4017.6,1.74233]
[1733599365262,0.7695,4018.4,4017.7,0.02526746]
[1733599365461,0.7695,4018.4,4017.9,1.74219]
[1733599365863,1.80864502,4018.7,4018.0,0.02526746]
[1733599366092,0.85968682,4018.6,4018.0,0.02526746]
[1733599366405,1.28953546,4018.6,4018.0,0.02526746]
[1733599366612,1.80864502,4018.7,4018.0,0.02526746]
[1733599366922,0.85968705,4018.6,4018.0,1.76740746]
[1733599367158,0.7695,4018.7,4018.0,1.76740746]
[1733599367362,0.85967863,4018.6,4018.0,1.76740746]
[1733599367517,1.80864502,4018.7,4018.0,1.76740746]
[1733599367710,0.85987962,4018.6,4018.0,1.76740746]
[1733599368056,3.09846446,4018.7,4018.0,1.76740746]
[1733599368258,2.14969969,4018.6,4018.0,1.76740746]
[1733599368565,0.85988025,4018.5,4018.0,1.74214]
[1733599368856,1.28981944,4018.6,4018.1,0.02526746]
[1733599369051,0.86009384,4018.5,4018.1,0.02526746]
[1733599369355,1.80864502,4018.7,4018.1,0.02526746]
[1733599369525,2.15074475,4018.6,4018.1,0.02526746]
[1733599369857,1.80864502,4018.7,4018.0,1.74214]
[1733599369858,0.8602979,4018.5,4018.0,0.82]
[1733599370154,1.80864502,4018.7,4018.1,1.7421]
[1733599370360,0.86035217,4018.6,4018.1,1.7421]
[1733599370681,1.80864502,4018.7,4018.2,0.02475606]
[1733599370869,0.86034519,4018.6,4018.2,0.02475606]
[1733599371074,1.80864502,4018.7,4018.2,0.02475606]
[1733599371371,2.15096074,4018.6,4018.2,0.02475606]
[1733599371561,1.80864502,4018.7,4018.2,0.02475606]
[1733599371872,2.1510219,4018.6,4018.2,0.02475606]
[1733599372040,1.80864502,4018.7,4018.2,1.76681606]
[1733599372246,0.86039813,4018.6,4018.2,1.76681606]
[1733599372445,0.7695,4018.7,4018.2,1.76681606]
[1733599372643,0.86042452,4018.6,4018.2,1.76681606]
[1733599372847,0.7695,4018.7,4018.2,1.76681606]
[1733599373356,0.86039209,4018.6,4018.2,1.76681606]
[1733599373547,1.80864502,4018.7,4018.2,1.76681606]
[1733599373873,0.86039403,4018.6,4018.2,1.76681606]
[1733599374074,1.80864502,4018.7,4018.2,1.76681606]
[1733599374368,2.15093194,4018.6,4018.2,1.76681606]
[1733599374616,1.29053789,4018.6,4018.2,1.76681606]
[1733599374773,1.29054408,4018.6,4018.2,0.02475606]
[1733599374974,0.86037316,4018.5,4018.2,0.02475606]
[1733599375148,1.80864502,4018.7,4018.0,2.56215]
[1733599375149,2.32972769,4018.6,4018.0,2.56215]
[1733599375335,0.86037328,4018.5,4018.0,2.56215]
[1733599375672,1.29055542,4018.5,4018.0,1.74215]
[1733599375975,1.29055542,4018.5,4017.7,0.7579]
[1733599375976,0.86040054,4018.4,4017.8,1.74224]
[1733599376141,3.19018149,4018.3,4018.1,0.02475606]
[1733599376330,3.19018149,4018.3,4017.7,0.7579]
[1733599376331,3.19020778,4018.2,4017.7,2.50018]
[1733599376670,1.03914502,4018.3,4017.8,0.02450282]
[1733599376876,2.15101695,4018.2,4017.8,0.02450282]
[1733599377045,1.03914502,4018.3,4017.7,2.50018]
[1733599377249,0.86039728,4018.2,4017.8,0.02450282]
[1733599377471,0.86039728,4018.2,4017.7,2.50018]
[1733599377472,2.15099378,4018.1,4017.7,2.50018]
[1733599377680,1.2905965,4018.1,4017.7,2.50018]
[1733599377973,1.03914502,4018.2,4017.8,0.02450282]
[1733599378182,0.86041701,4018.1,4017.8,1.74223]
[1733599378405,1.03914502,4018.4,4017.9,0.02450282]
[1733599378690,2.15098431,4018.3,4017.8,1.74223]
[1733599378894,0.86039372,4018.2,4017.8,1.74223]
[1733599379049,2.32965953,4018.5,4017.8,1.74223]
[1733599379249,0.86034274,4018.4,4017.8,1.74223]
[1733599379489,2.15074975,4018.3,4017.8,1.74223]
[1733599379667,1.03914502,4018.5,4017.8,1.74223]
[1733599379884,2.15078555,4018.4,4017.8,1.74223]
[1733599380190,1.03914502,4018.5,4017.8,1.74223]
[1733599380348,0.86026414,4018.4,4017.8,1.74223]
[1733599380550,1.03914502,4018.5,4017.8,1.74223]
[1733599380771,0.86027162,4018.4,4017.9,0.02450282]
[1733599380987,1.03914502,4018.5,4017.8,1.74223]
[1733599381290,0.86027093,4018.4,4017.8,1.74223]
[1733599381488,1.03914502,4018.5,4017.8,1.74223]
[1733599381691,0.86022431,4018.4,4017.8,1.74223]
[1733599381854,1.03914502,4018.5,4017.8,1.74223]
[1733599382055,2.15056088,4018.4,4017.8,1.74223]
[1733599382375,1.03914502,4018.5,4017.8,1.74223]
[1733599382693,0.8601849,4018.4,4017.8,1.74223]
[1733599382855,1.29027006,4018.5,4017.8,1.74223]
[1733599383056,2.15047516,4018.4,4017.9,0.02455152]
[1733599383263,2.15047516,4018.4,4017.8,1.74223]
[1733599383264,1.29029345,4018.4,4017.8,1.74223]
[1733599383450,0.86014951,4018.3,4017.8,1.74223]
[1733599383654,1.29029345,4018.4,4017.9,0.02455152]
[1733599383853,0.86015042,4018.3,4017.8,1.74223]
[1733599384063,1.29029345,4018.4,4017.9,0.02455152]
[1733599384268,0.86016286,4018.3,4017.9,0.02455152]
[1733599384601,1.29029345,4018.4,4018.0,0.02455152]
[1733599384788,1.29017243,4018.4,4017.9,1.74218]
[1733599385011,2.32821753,4018.7,4018.5,2.52154]
[1733599385012,1.29017243,4018.6,4018.5,2.52154]
[1733599385159,1.03914502,4019.1,4018.6,1.74189]
[1733599385358,1.28982207,4019.1,4018.7,1.74184]
[1733599385699,1.28982207,4019.2,4018.7,1.76630387]
[1733599385921,0.85984205,4019.1,4018.7,1.76630387]
[1733599386227,1.28982207,4019.2,4018.8,0.02446387]
[1733599386391,0.85983159,4019.1,4018.5,0.7796]
[1733599386726,1.03914502,4018.8,4018.6,0.02446387]
[1733599386893,0.85986725,4018.7,4018.6,0.02446387]
[1733599387098,2.14968932,4018.7,4018.1,0.7658]
[1733599387423,0.85986725,4018.6,4018.1,0.7658]
[1733599387588,1.28982207,4018.7,4018.1,0.7658]
[1733599387923,1.03914502,4018.8,4018.1,0.7658]
[1733599388123,0.86002915,4018.7,4018.1,0.7658]
[1733599388332,0.86002915,4018.6,4018.1,2.50791]
[1733599388481,1.29023088,4018.7,4018.3,1.74202]
[1733599388686,1.29017705,4018.8,4018.3,1.74202]
[1733599388925,0.86010067,4018.7,4018.3,1.74202]
[1733599389087,1.03914502,4018.8,4018.3,1.74202]
[1733599389291,2.15043595,4018.7,4018.3,1.74202]
[1733599389660,1.290347,4018.6,4018.1,2.50791]
[1733599389929,1.03914502,4018.7,4018.1,2.50791]
[1733599390127,2.1506624,4018.6,4018.1,2.50791]
[1733599390285,0.86039519,4018.5,4018.1,0.7658]
[1733599390492,1.03914502,4018.6,4018.1,0.7658]
[1733599390718,0.86042935,4018.5,4018.1,0.7658]
[1733599390918,1.55871753,4018.8,4018.1,0.7658]
[1733599390919,1.03914502,4018.7,4018.1,0.7658]
[1733599391117,2.15107828,4018.6,4018.1,0.7658]
[1733599391326,0.86043131,4018.5,4018.1,2.50791]
[1733599391513,1.29086181,4018.6,4018.2,1.74205]
[1733599391827,1.03914502,4018.7,4018.2,1.74205]
[1733599392028,0.86056521,4018.6,4018.2,1.74205]
[1733599392236,1.03914502,4018.7,4018.2,1.74205]
[1733599392529,2.15144055,4018.6,4018.2,1.74205]
[1733599392729,1.03914502,4018.7,4018.2,1.74205]
[1733599393026,2.50066276,4019.2,4018.2,1.74205]
[1733599393027,1.03914502,4018.8,4018.2,1.74205]
[1733599393185,2.15134058,4018.7,4018.2,1.74205]
[1733599393385,0.8605568,4018.6,4018.2,1.74205]
[1733599393585,1.29083062,4018.7,4018.2,1.74205]
[1733599393827,0.8605552,4018.6,4018.2,0.250785]
[1733599393984,2.07829005,4019.2,4018.2,0.250785]
[1733599393985,1.03914502,4018.9,4018.7,1.74185]
[1733599394191,1.03914502,4019.0,4018.7,1.74185]
[1733599394391,0.8604814,4018.9,4018.7,1.74185]
[1733599394693,1.03914502,4019.0,4018.9,0.7658]
[1733599394888,0.86047718,4019.0,4018.9,0.7658]
[1733599395103,0.86047718,4019.0,4018.9,0.7882119]
[1733599397005,0.86047718,4019.0,4018.9,0.7658]
[1733599397338,0.86047718,4019.0,4018.9,0.7882119]
[1733599397697,0.86047718,4019.0,4018.9,0.7658]
[1733599398032,0.86047718,4019.0,4018.9,0.7882119]
[1733599398609,1.29062362,4019.1,4018.9,2.5299719]
[1733599398800,1.03914502,4019.2,4019.0,1.74172]
[1733599398996,1.16874363,4019.3,4019.0,1.74172]
[1733599398997,0.8604001,4019.1,4019.0,1.74172]
[1733599399239,2.1509528,4019.1,4019.0,1.7641319]
[1733599399426,2.1509528,4019.1,4019.0,1.74172]
[1733599399674,2.1509528,4019.1,4018.9,0.7658]
[1733599399938,2.15101655,4019.0,4018.9,0.7658]
[1733599400242,0.8604001,4019.0,4018.9,0.7658]
[1733599400613,2.15103409,4019.0,4018.9,0.7658]
[1733599400966,0.8604001,4019.0,4018.9,0.7658]
[1733599401117,2.15100785,4019.0,4018.4,2.29195]
[1733599401317,0.8604001,4018.9,4018.3,0.7658]
[1733599401569,1.03914502,4019.0,4018.3,2.50782]
[1733599401723,0.86049446,4018.9,4018.3,2.50782]
[1733599401923,1.03914502,4019.0,4018.3,2.50782]
[1733599402129,2.15123053,4018.9,4018.4,1.74197]
[1733599402348,1.03914502,4019.0,4018.4,1.74197]
[1733599402557,0.86057934,4018.9,4018.4,1.74197]
[1733599402759,0.86057934,4018.8,4018.4,1.74197]
[1733599403071,1.03914502,4018.9,4018.4,1.74197]
[1733599403261,0.86062123,4018.8,4018.4,1.74197]
[1733599403453,1.03914502,4019.0,4018.4,1.74197]
[1733599403765,2.15171905,4018.9,4018.4,1.74197]
[1733599403923,1.03914502,4019.0,4018.5,1.74194]
[1733599404115,2.1517155,4018.9,4018.5,1.74194]
[1733599404318,0.8606862,4018.8,4018.5,1.74194]
[1733599404516,1.03914502,4019.0,4018.5,1.74194]
[1733599404759,2.15211641,4018.9,4018.5,1.74194]
[1733599404945,0.86084693,4018.8,4018.5,1.74194]
[1733599405146,1.03914502,4019.0,4018.5,1.74194]
[1733599405462,3.1918398,4018.9,4018.4,0.55]
[1733599405758,1.03914502,4019.0,4018.7,1.74185]
[1733599405921,0.86104157,4018.9,4018.7,1.74185]
[1733599406259,0.86132832,4018.8,4018.7,1.74185]
[1733599406857,1.03914502,4019.0,4018.8,1.7418]
[1733599407044,2.15329725,4018.9,4018.8,1.7418]
[1733599407357,3.19244227,4018.9,4018.8,1.7418]
[1733599408219,3.19244227,4018.9,4018.8,2.5529]
[1733599408640,2.15329725,4018.9,4018.8,3.35819]
[1733599409055,0.8613189,4018.9,4018.8,3.35819]
[1733599409260,1.03914502,4019.1,4019.0,1.74172]
[1733599409572,3.1937469,4019.1,4019.0,1.74172]
[1733599412937,3.1937469,4019.1,4018.9,1.74175]
[1733599413168,0.86184075,4019.0,4018.9,1.74175]
[1733599413971,0.86173348,4019.0,4018.9,1.74175]
[1733599414328,1.03914502,4019.2,4018.9,1.74175]
[1733599414639,2.15416276,4019.1,4018.9,1.74175]
[1733599414839,0.8616651,4019.0,4018.9,1.74175]
[1733599415269,1.03914502,4019.2,4018.9,1.74175]
[1733599415467,0.8616172,4019.1,4018.9,1.74175]
[1733599415675,1.03914502,4019.2,4018.9,1.74175]
[1733599415969,0.86161109,4019.1,4018.9,1.74175]
[1733599416171,1.03914502,4019.2,4018.9,1.74175]
[1733599416334,0.86155157,4019.1,4018.9,1.74175]
[1733599416535,2.20788865,4019.3,4018.9,2.81130127]
[1733599416773,2.1538738,4019.2,4018.9,2.81130127]
[1733599416974,0.86154952,4019.1,4018.9,2.81130127]
[1733599417143,1.03914502,4019.2,4018.9,2.81130127]
[1733599417341,0.861508,4019.1,4018.9,2.81130127]
[1733599417558,1.03914502,4019.2,4018.9,2.81130127]
[1733599417734,0.86150909,4019.1,4018.9,2.81130127]
[1733599417936,1.03914502,4019.2,4018.9,2.81130127]
[1733599418231,0.8615045,4019.1,4018.9,2.81130127]
[1733599418436,2.20788865,4019.3,4018.9,2.81130127]
[1733599418636,2.15364385,4019.2,4018.9,2.81130127]
[1733599418940,0.86145763,4019.1,4018.9,2.81130127]
[1733599419266,2.20788865,4019.3,4018.9,2.81130127]
[1733599419467,2.15352863,4019.2,4018.9,2.81130127]
[1733599419692,0.86141145,4019.1,4018.9,2.81130127]
[1733599419861,1.03914502,4019.2,4018.8,0.8111]
[1733599420032,2.15357275,4019.1,4018.6,1.06955127]
[1733599420373,0.8614291,4019.0,4018.6,1.06955127]
[1733599420674,1.03914502,4019.1,4018.6,1.06955127]
[1733599420862,0.86144124,4019.0,4018.6,1.06955127]
[1733599421066,1.03914502,4019.1,4018.6,1.06955127]
[1733599421281,0.86143599,4019.0,4018.7,0.7725]
[1733599421450,1.03914502,4019.2,4018.7,2.51433]
[1733599421638,0.86141291,4019.1,4018.7,2.51433]
[1733599421981,0.86142674,4019.0,4018.7,2.51433]
[1733599422142,1.03914502,4019.2,4018.7,2.51433]
[1733599422348,3.19292365,4019.1,4018.7,2.51433]
[1733599422531,0.86151145,4019.0,4018.7,0.7725]
[1733599422742,1.03914502,4019.1,4018.7,0.7725]
[1733599422935,2.15383571,4019.0,4018.7,0.7725]
[1733599423164,1.03914502,4019.1,4018.7,0.7725]
[1733599423363,2.15409585,4019.0,4018.7,0.7725]
[1733599423579,0.86164029,4018.9,4018.6,1.06955127]
[1733599423853,1.03914502,4019.2,4018.6,1.06955127]
[1733599424066,2.15409796,4019.1,4018.6,1.06955127]
[1733599424286,0.86175197,4019.0,4018.6,1.06955127]
[1733599424590,1.03914502,4019.2,4018.6,1.06955127]
[1733599424789,3.19355775,4019.1,4018.4,0.8025]
[1733599424961,1.03914502,4018.9,4018.3,1.61955127]
[1733599425146,2.15453001,4018.8,4018.1,0.8025]
[1733599425349,2.91552943,4018.7,4018.1,1.87205127]
[1733599425587,0.86176509,4018.6,4018.1,1.06955127]
[1733599425802,0.86194641,4018.5,4017.8,1.06955127]
[1733599425982,1.03914502,4018.6,4017.8,1.06955127]
[1733599425983,0.8619937,4018.4,4017.8,1.06955127]
[1733599426180,1.03914502,4018.5,4017.8,1.06955127]
[1733599426486,0.86201063,4018.4,4017.8,1.06955127]
[1733599426787,1.03914502,4018.5,4017.7,0.8025]
[1733599427094,2.15505568,4018.4,4017.7,0.8025]
[1733599427393,1.03914502,4018.5,4017.7,0.8025]
[1733599427589,2.15523693,4018.4,4017.7,0.8025]
[1733599427756,1.03914502,4018.5,4017.7,0.8025]
[1733599427948,2.15522975,4018.4,4017.7,0.8025]
[1733599428179,0.8620919,4018.3,4017.7,0.8025]
[1733599428385,1.03914502,4018.5,4017.7,0.8025]
[1733599428584,2.15545777,4018.4,4017.7,0.8025]
[1733599428898,0.86218311,4018.3,4017.7,0.8025]
[1733599429053,1.03914502,4018.5,4017.7,0.8025]
[1733599429253,2.15570608,4018.4,4017.7,0.8025]
[1733599429457,0.86228243,4018.3,4017.7,0.8025]
[1733599429763,1.03914502,4018.5,4017.7,0.8025]
[1733599429960,2.15570868,4018.4,4017.7,2.54478]
[1733599430186,0.86239562,4018.3,4017.7,2.54478]
[1733599430397,1.03914502,4018.5,4017.7,2.54478]
[1733599430601,2.15599508,4018.4,4017.7,2.54478]
[1733599430892,0.86239803,4018.3,4017.7,0.8025]
[1733599431100,1.03914502,4018.4,4017.7,0.8025]
[1733599431257,0.86242771,4018.3,4017.7,0.8025]
[1733599431597,0.86242771,4018.2,4017.7,0.8025]
[1733599431763,1.03914502,4018.4,4017.7,0.8025]
[1733599432092,2.15610908,4018.3,4017.7,0.8025]
[1733599432255,0.86244363,4018.2,4017.7,0.8025]
[1733599432454,1.03914502,4018.4,4017.7,0.8025]
[1733599432653,2.15602525,4018.3,4017.7,0.8025]
[1733599432856,0.8624101,4018.2,4017.7,0.8025]
[1733599433058,1.03914502,4018.3,4017.7,0.8025]
[1733599433369,1.72481701,4018.6,4017.7,0.8025]
[1733599433370,0.86243759,4018.2,4017.7,0.8025]
[1733599433570,1.03914502,4018.3,4017.7,0.8025]
[1733599433772,0.86243659,4018.2,4017.7,1.28882662]
[1733599433956,1.03914502,4018.4,4017.7,1.28882662]
[1733599434160,0.86240963,4018.3,4017.8,1.74223]
[1733599434482,0.7609,4018.7,4017.8,1.74223]
[1733599435187,0.7609,4018.7,4017.7,1.28882662]
[1733599435399,0.7609,4018.7,4017.8,0.53495928]
[1733599436291,1.04309056,4018.5,4017.8,0.53495928]
[1733599436604,3.19935434,4018.4,4017.8,0.53495928]
[1733599436760,2.15626378,4018.3,4017.8,0.53495928]
[1733599437094,0.86250624,4018.2,4017.8,0.53495928]
[1733599437296,1.04309056,4018.4,4017.8,0.53495928]
[1733599437494,2.15640407,4018.3,4017.8,0.53495928]
[1733599437669,0.86256163,4018.2,4017.8,0.53495928]
[1733599437998,1.04309056,4018.4,4017.8,0.53495928]
[1733599438204,3.19949561,4018.3,4017.7,0.8025]
[1733599438429,0.86256202,4018.2,4017.7,0.8025]
[1733599438709,1.04309056,4018.3,4017.7,0.8025]
[1733599438906,0.86259442,4018.2,4017.7,0.8025]
[1733599439061,1.04309056,4018.3,4017.7,0.8025]
[1733599439409,0.86258379,4018.2,4017.7,0.8025]
[1733599439712,1.04309056,4018.3,4017.7,0.8025]
[1733599439860,0.86257986,4018.2,4017.7,0.8025]
[1733599440058,1.04309056,4018.4,4017.7,2.54478]
[1733599440285,2.1564031,4018.3,4017.7,2.54478]
[1733599440487,0.86256124,4018.2,4017.7,2.54478]
[1733599440681,1.04309056,4018.3,4017.7,2.54478]
[1733599440895,0.86256803,4018.2,4017.7,0.8025]
[1733599441098,1.04309056,4018.4,4017.7,0.8025]
[1733599441307,3.19945947,4018.3,4017.7,0.8025]
[1733599441503,0.86254756,4018.2,4017.7,0.8025]
[1733599441709,1.04309056,4018.3,4017.7,0.8025]
[1733599441876,2.15636647,4018.2,4017.7,0.8025]
[1733599442197,0.86253706,4018.1,4017.7,0.8025]
[1733599442404,0.7836,4018.1,4017.3,0.7662]
[1733599442558,2.15631267,4018.0,4017.3,0.7662]
[1733599442762,2.1563419,4017.9,4017.3,0.7662]
[1733599443086,0.86254892,4017.8,4017.3,0.7662]
[1733599443290,1.04309056,4018.0,4017.3,0.7662]
[1733599443507,2.1560058,4017.9,4017.3,0.7662]
[1733599443710,0.86240232,4017.8,4017.3,0.7662]
[1733599444009,1.04309056,4017.9,4017.3,0.7662]
[1733599444219,0.8623889,4017.8,4017.3,0.7662]
[1733599444499,0.86227473,4017.7,4017.3,0.7662]
[1733599444713,0.86228169,4017.6,4017.3,0.7662]
[1733599445008,1.04309056,4017.8,4017.3,0.7662]
[1733599445166,2.15573633,4017.7,4017.3,0.7662]
[1733599445497,1.04309056,4017.8,4017.3,0.7662]
[1733599445807,0.8620744,4017.7,4017.3,0.7662]
[1733599446017,1.56463585,4018.0,4017.3,0.7662]
[1733599446018,1.04309056,4018.0,4017.4,1.74241]
[1733599446229,0.86200583,4017.9,4017.4,0.48270562]
[1733599446523,1.04309056,4018.0,4017.4,0.48270562]
[1733599446707,2.15480428,4017.9,4017.4,0.48270562]
[1733599446888,1.04309056,4018.0,4017.3,0.7662]
[1733599447093,0.86191929,4017.9,4017.3,0.7662]
[1733599447291,1.04309056,4018.0,4017.3,0.7662]
[1733599447503,0.86181033,4017.9,4017.3,0.7662]
[1733599447717,1.04309056,4018.0,4017.3,0.7662]
[1733599447886,0.86181354,4017.9,4017.3,0.7662]
[1733599448216,1.04309056,4018.0,4017.3,0.7662]
[1733599448395,0.86170187,4017.9,4017.3,0.7662]
[1733599448723,1.04309056,4018.0,4017.3,0.7662]
[1733599448922,0.86170143,4017.9,4017.3,0.7662]
[1733599449224,1.04309056,4018.1,4017.3,0.7662]
[1733599449520,2.15399485,4018.0,4017.3,0.7662]
[1733599449681,0.86159794,4017.9,4017.3,0.7662]
[1733599450018,1.04309056,4018.1,4017.3,0.7662]
[1733599450182,2.15398896,4018.0,4017.3,0.7662]
[1733599450380,1.04309056,4018.2,4017.3,0.7662]
[1733599450580,2.15370075,4018.1,4017.5,1.07028452]
[1733599450800,1.04309056,4018.2,4017.5,1.07028452]
[1733599451000,2.15367448,4018.1,4017.5,1.07028452]
[1733599451328,1.04309056,4018.2,4017.5,1.07028452]
[1733599451495,2.1535119,4018.1,4017.5,1.07028452]
[1733599451698,0.86140476,4018.0,4017.5,1.07028452]
[1733599451880,0.86143666,4017.9,4017.1,2.54243]
[1733599452080,1.84979056,4018.1,4017.3,1.07028452]
[1733599452283,2.15353508,4018.0,4017.3,1.07028452]
[1733599452512,0.86137089,4017.9,4017.3,1.07028452]
[1733599452719,1.84979056,4018.1,4017.3,1.07028452]
[1733599452919,2.1534064,4018.0,4017.3,1.07028452]
[1733599453221,0.86133414,4017.9,4017.3,1.07028452]
[1733599453403,0.8067,4018.1,4017.3,1.43155197]
[1733599453622,1.04309056,4018.2,4017.6,1.07028452]
[1733599453829,0.86126379,4018.1,4017.6,1.07028452]
[1733599454143,1.04309056,4018.3,4017.6,1.07028452]
[1733599454329,2.1530394,4018.2,4017.6,1.07028452]
[1733599454538,0.86121346,4018.1,4017.7,0.02174899]
[1733599454712,1.04309056,4018.3,4017.6,1.07028452]
[1733599454911,3.19614486,4018.2,4017.6,1.07028452]
[1733599455098,0.86122172,4018.1,4017.7,0.02226991]
[1733599455300,1.04309056,4018.2,4017.7,0.02226991]
[1733599455542,0.86123774,4018.1,4017.7,0.02226991]
[1733599455704,1.04309056,4018.2,4017.7,0.02226991]
[1733599455705,0.8612451,4018.0,4017.7,0.02226991]
[1733599455906,1.04309056,4018.2,4017.7,0.02226991]
[1733599456146,2.1531081,4018.1,4017.7,0.02226991]
[1733599456305,1.04309056,4018.2,4017.7,0.02226991]
[1733599456502,0.86122751,4018.1,4017.7,0.02226991]
[1733599456716,1.04309056,4018.2,4017.7,0.02226991]
[1733599456936,0.86122198,4018.1,4017.7,0.02226991]